Cogmind - Beta 12 *** ADVENTURER MODE // 2023.09.05 @ 23:01:23 Player: insanec Result: Self-destructed Performance ------------- Evolutions (2) 1000 Regions Visited (4) 800 Robots Destroyed (47) 235 Value Destroyed (1326) 1326 Prototype IDs (1) 20 Alien Tech Used (0) 0 Bonus (0) 0 TOTAL SCORE: 3381 Bonus ------- None Cogmind --------- Core Integrity 311/550 Matter 380/400 Energy 12/100 System Corruption 1% Temperature Cool (18) Movement Core (200) Ox3 Location -8/Materials Parts ------- > --- POWER (1) -------- (None) > --- PROPULSION (4) --- (None) > --- UTILITY (3) ------ Medium Storage Unit Medium Matter Pod > --- WEAPON (3) ------- (None) > --- INVENTORY (10) --- Nuclear Core Light Treads Visual Processing Unit Signal Interpreter Advanced EMP Blaster Mini Grenade Launcher Mini Grenade Launcher Maul Peak State ------------ > --- POWER ------------ Light Nuclear Core > --- PROPULSION ------- Light Treads Light Treads Light Treads > --- UTILITY ---------- Medium Storage Unit Medium Matter Pod Shield Generator > --- WEAPON ----------- Beam Rifle Improved Medium Laser Light Assault Rifle > --- INVENTORY -------- Nuclear Core Light Treads Visual Processing Unit Signal Interpreter Shield Generator Assault Rifle Advanced EMP Blaster Mini Grenade Launcher Mini Grenade Launcher Maul [Rating: 18] Favorites ----------- Power Ion Engine Engine Ion Engine Power Core Light Nuclear Core Propulsion Light Treads Treads Light Treads Utility Medium Matter Pod Device Shield Generator Storage Medium Matter Pod Weapon Assault Rifle Energy Gun Beam Rifle Ballistic Gun Assault Rifle Launcher Mini Grenade Launcher Build | -11 -10 -10 -9 -8 ------- Run | Jun Mat Min Mat Mat Slots Evolved 4 | . . . 2 2 Power . | . . . . . Propulsion 2 | . . . 1 1 Utility 1 | . . . . 1 Weapon 1 | . . . 1 . Parts Attached 33 | 6 3 . 15 9 Power 3 | 1 . . 1 1 Engine 2 | 1 . . 1 . Core 1 | . . . . 1 Reactor . | . . . . . Propulsion 8 | 2 . . 4 2 Treads 8 | 2 . . 4 2 Leg . | . . . . . Wheel . | . . . . . Hover . | . . . . . Flight . | . . . . . Utility 7 | 1 2 . 2 2 Device 2 | . . . . 2 Storage 5 | 1 2 . 2 . Processor . | . . . . . Hackware . | . . . . . Protection . | . . . . . Artifact . | . . . . . Weapon 15 | 2 1 . 8 4 Energy Gun 6 | 1 . . 3 2 Energy Cannon . | . . . . . Ballistic Gun 7 | 1 1 . 4 1 Ballistic Cannon . | . . . . . Launcher 2 | . . . 1 1 Special Weapon . | . . . . . Impact Weapon . | . . . . . Slashing Weapon . | . . . . . Piercing Weapon . | . . . . . Special Melee Weapon . | . . . . . Unidentified Prototypes 1 | . . . 1 . Parts Lost 19 | . . . 5 14 Power 3 | . . . 1 2 Propulsion 8 | . . . 3 5 Utility 2 | . . . . 2 Weapon 6 | . . . 1 5 Highest Loss Streak 8 | . . . 2 8 To Critical Strikes . | . . . . . Average Slot Usage (%) 93 | . 91 100 96 87 Engine 9 | . 14 14 10 4 Core 1 | . . . . 4 Treads 28 | . 28 28 30 27 Device 2 | . . . . 8 Storage 21 | . 19 28 22 18 Energy Gun 9 | . 7 . 10 12 Ballistic Gun 19 | . 20 28 21 12 Naked Turns . | . . . . . Heaviest Build 94 | 14 21 21 94 27 Greatest Support 80 | 40 40 40 60 80 Greatest Overweight (x) 2 | . . . 2 1 Average Overweight (x) . | . . . . . Largest Inventory Capacity 25 | 8 10 10 25 10 Average Capacity 11 | 7 8 10 13 10 Most Carried 14 | 3 8 8 14 10 Average Carried 7 | 1 4 8 9 8 Final Capacity 10 | 8 10 10 10 10 Final Carried 10 | 2 8 8 10 8 Class Distribution -------------------- 39% | Mutant 31% | Gunner 20% | Scavenger-Tank 7% | Scavenger-Gunner Dominant Class ---------------- Mutant | -10/Materials Mutant | -10/Mines Gunner | -9/Materials Scavenger-Tank | -8/Materials Resources | -11 -10 -10 -9 -8 ----------- Run | Jun Mat Min Mat Mat Matter Collected 1035 | 131 218 37 339 310 Remotely . | . . . . . Salvage Created 1587 | . 265 . 546 776 Parts 105 | . 22 . 46 37 Haulers Intercepted 1 | . . . . 1 Recyclers Shooed 2 | . 1 . 1 . Parts Field Recycled . | . . . . . Retrieved Matter . | . . . . . Parts Self-Destructed . | . . . . . Prevented . | . . . . . Kills | -11 -10 -10 -9 -8 ------- Run | Jun Mat Min Mat Mat Combat Hostiles Destroyed 37 | . 9 . 14 14 Guns 30 | . 9 . 14 7 AOE 4 | . . . . 4 Classes Destroyed 10 | . 4 . 2 4 Worker 3 | . 1 . . 2 Builder 2 | . 1 . . 1 Hauler 1 | . . . . 1 Recycler 2 | . . . 1 1 Watcher 2 | . . . . 2 Swarmer 12 | . 6 . 6 . Grunt 17 | . 3 . 3 11 Duelist 1 | . . . . 1 Sentry 6 | . . . 5 1 Hunter 1 | . . . . 1 Best Kill Streak 5 | . 3 . 5 5 Combat Bots Only 5 | . 3 . 5 3 Max Kills in Single Turn 2 | . 1 . 2 1 Gunslinging 1 | . . . 1 . Exploded 1 | . . . . 1 Melee . | . . . . . Uniques/NPCs Destroyed . | . . . . . Combat | -11 -10 -10 -9 -8 -------- Run | Jun Mat Min Mat Mat Damage Taken 2549 | . 320 . 983 1246 Core 420 | . 59 . 122 239 Absorbed by Shields 291 | . . . . 291 Core Remaining (%) 81 | 100 . 76 69 . Volleys Fired 127 | . 31 1 39 56 Largest 3 | . 2 2 3 3 Hottest 132 | . 70 40 99 132 Shots Fired 313 | . 62 2 110 139 Gun 298 | . 62 2 108 126 Cannon . | . . . . . Launcher 15 | . . . 2 13 Special . | . . . . . Kinetic 178 | . 44 2 71 61 Thermal 120 | . 18 . 37 65 Explosive 15 | . . . 2 13 Electromagnetic . | . . . . . Robot Hit Streak 30 | . 16 5 20 30 Robot Miss Streak 7 | . 3 . 7 2 Penetration Max . | . . . . . Secondary Targets 6 | . 2 . 4 . Max Gunslinging Chain 1 | . 1 . 1 . Shots Hit Robots 207 | . 44 2 56 105 Core Hits 92 | . 15 1 28 48 Critical Kills . | . . . . . Critical Parts Destroyed 1 | . 1 . . . Critical Strikes 10 | . 2 . 1 7 Burn 9 | . 1 . 1 7 Destroy 1 | . 1 . . . Melee Attacks . | . . . . . Impact . | . . . . . Slashing . | . . . . . Piercing . | . . . . . Sneak Attacks . | . . . . . Combat Hostiles . | . . . . . Follow-up Attacks . | . . . . . Damage Inflicted 3434 | . 591 21 735 2087 Guns 2741 | . 591 21 725 1404 Cannons . | . . . . . Explosions 683 | . . . . 683 Melee . | . . . . . Ramming 10 | . . . 10 . Kinetic 1334 | . 402 21 422 489 Thermal 1407 | . 189 . 303 915 Explosive 683 | . . . . 683 Electromagnetic . | . . . . . Impact . | . . . . . Slashing . | . . . . . Piercing . | . . . . . Highest Corruption 1 | . . . 1 1 Average Corruption 1 | . . . 1 1 Corruption Purged . | . . . . . Corruption Blocked . | . . . . . Effects 9 | . . . 8 1 Message Errors 3 | . . . 3 . Matter Fused 2 | . . . 1 1 Heat Flow Errors 3 | . . . 3 . Parts Rejected 1 | . . . 1 . Overload Shots . | . . . . . Overflow Damage 7 | . . . . 7 Projectiles . | . . . . . Explosions 7 | . . . . 7 Melee . | . . . . . Knockbacks . | . . . . . Impact . | . . . . . Kinetic . | . . . . . Secondary . | . . . . . Self-Inflicted Damage 61 | . . . . 61 Shots 4 | . . . . 4 Rammed 4 | . . . 4 . Targets Rammed 4 | . . . 4 . Kicked . | . . . . . Crushed . | . . . . . Highest Temperature 396 | . 150 . 262 396 Average Temperature 76 | . 47 . 54 102 Received Heat Transfer 1284 | . 138 . 324 822 Siege Activations . | . . . . . Robots Corrupted . | . . . . . Combat Hostiles . | . . . . . Parts Fried . | . . . . . Impact Corruptions . | . . . . . Robots Melted 3 | . . . . 3 Combat Hostiles 3 | . . . . 3 Parts Melted 7 | . . . 3 4 Heat Transferred 4070 | . 629 . 851 2590 Parts Sabotaged . | . . . . . Parts Stolen . | . . . . . Parts Stripped . | . . . . . Power Chain Reactions . | . . . . . Missiles Intercepted . | . . . . . Alert | -11 -10 -10 -9 -8 ------- Run | Jun Mat Min Mat Mat Peak Influence 302 | . 151 47 181 302 Initial 47 | . . 47 15 . Average 92 | . 99 47 74 151 Maximum Alert Level 1 | . . . . 1 Low Security (%) 92 | 100 100 100 100 68 Level 1 7 | . . . . 31 Level 2 . | . . . . . Level 3 . | . . . . . Level 4 . | . . . . . Level 5 . | . . . . . High Security . | . . . . . Max Security . | . . . . . Squads Dispatched 3 | . . . . 3 Investigation 2 | . . . . 2 Extermination . | . . . . . Reinforcement 1 | . . . . 1 Assault . | . . . . . Garrison . | . . . . . Intercept . | . . . . . Searches Triggered . | . . . . . Construction Impeded . | . . . . . Haulers Reinforced . | . . . . . Active Scanning Responses . | . . . . . Cargo Convoy Interrupts . | . . . . . Stealth | -11 -10 -10 -9 -8 --------- Run | Jun Mat Min Mat Mat Distress Signals 9 | . 3 . 2 4 Communications Jammed . | . . . . . Distress Signals . | . . . . . Times Spotted 65 | . 16 . 22 27 Peak Tracking Total 7 | . 7 . 7 6 Tactical Retreats 5 | . 1 . 1 3 Traps | -11 -10 -10 -9 -8 ------- Run | Jun Mat Min Mat Mat Traps Triggered 6 | . . . 3 3 Indirectly . | . . . . . Trap Hack Attempts . | . . . . . Triggered . | . . . . . Disarmed . | . . . . . Reprogrammed . | . . . . . Reused . | . . . . . Traps Extracted . | . . . . . Installed . | . . . . . Triggered . | . . . . . Machines | -11 -10 -10 -9 -8 ---------- Run | Jun Mat Min Mat Mat Machines Disabled 1 | . . . 1 . Max in Single Turn 1 | . . . 1 . Machines Repaired . | . . . . . Machines Sabotaged . | . . . . . Overloaded Fab Kills . | . . . . . Hacking | -11 -10 -10 -9 -8 --------- Run | Jun Mat Min Mat Mat Machines Accessed 8 | . 3 . 4 1 Terminals 5 | . 2 . 3 . Fabricators . | . . . . . Repair Stations . | . . . . . Recycling Units 3 | . 1 . 1 1 Scanalyzers . | . . . . . Garrison Access . | . . . . . Total Hacks 22 | . 6 . 14 2 Successful 15 | . 4 . 11 . Failed 7 | . 2 . 3 2 Catastrophic . | . . . . . Database Lockouts . | . . . . . Manual . | . . . . . Terminals 13 | . 4 . 9 . Fabricators . | . . . . . Repair Stations . | . . . . . Recycling Units 9 | . 2 . 5 2 Scanalyzers . | . . . . . Garrison Access . | . . . . . Terminal Hacks 9 | . 2 . 7 . Record 4 | . 1 . 3 . Alert Level 1 | . . . 1 . Locate Traps 1 | . 1 . . . Maintenance Status 1 | . . . 1 . Zone Layout 2 | . . . 2 . Fabricator Hacks . | . . . . . Repair Station Hacks . | . . . . . Recycling Unit Hacks 6 | . 2 . 4 . Process 1 | . . . 1 . Report Inventory 2 | . 1 . 1 . Retrieve Matter 2 | . . . 2 . Retrieve Components 1 | . 1 . . . Scanalyzer . | . . . . . Garrison Access Hacks . | . . . . . Unauthorized Hacks . | . . . . . Terminals . | . . . . . Fabricators . | . . . . . Repair Stations . | . . . . . Recycling Units . | . . . . . Scanalyzers . | . . . . . Garrison Access . | . . . . . Data Cores Recovered . | . . . . . Used . | . . . . . Hacking Detections 7 | . 3 . 3 1 Full Trace Events 1 | . . . . 1 Feedback Events . | . . . . . Feedback Blocked . | . . . . . Robot Schematics Acquired . | . . . . . Robots Built . | . . . . . Authchips . | . . . . . Time . | . . . . . Total Robot Build Rating . | . . . . . Part Schematics Acquired . | . . . . . Parts Built . | . . . . . Authchips . | . . . . . Time . | . . . . . Total Part Build Rating . | . . . . . Parts Repaired . | . . . . . Time . | . . . . . Parts Recycled . | . . . . . Recycled Matter 94 | . . . 94 . Retrieved Matter 94 | . . . 94 . Retrieved Components 6 | . 6 . . . Parts Scanalyzed . | . . . . . Part Schematics Acquired . | . . . . . Parts Damaged . | . . . . . Bothacking | -11 -10 -10 -9 -8 ------------ Run | Jun Mat Min Mat Mat Used RIF Installer . | . . . . . Robots Hacked . | . . . . . Non-combat . | . . . . . Combat . | . . . . . Robot Hacks Applied . | . . . . . Relay Couplers Released . | . . . . . Fabnet Peak Effective % . | . . . . . Robots Rewired . | . . . . . Allies Hacked . | . . . . . Hacks Repelled . | . . . . . Allies | -11 -10 -10 -9 -8 -------- Run | Jun Mat Min Mat Mat Total Allies . | . . . . . Largest Group . | . . . . . Highest-Rated Group . | . . . . . Highest-Rated Ally . | . . . . . Total Orders . | . . . . . Ally Attacks . | . . . . . Total Damage . | . . . . . Kills . | . . . . . Allies Corrupted . | . . . . . Allies Melted . | . . . . . Intel | -11 -10 -10 -9 -8 ------- Run | Jun Mat Min Mat Mat Robot Analysis Total . | . . . . . Derelict Logs Recovered 1 | . . 1 . . Drone Launches . | . . . . . Drone Recoveries . | . . . . . Exploration | -11 -10 -10 -9 -8 ------------- Run | Jun Mat Min Mat Mat Turns Passed 2770 | 121 537 202 1231 679 Spaces Moved 1369 | 79 260 125 609 296 Core 17 | 17 . . . . Treads 1352 | 62 260 125 609 296 Legs . | . . . . . Wheels . | . . . . . Hover . | . . . . . Flight . | . . . . . Fastest Speed 50 | 50 160 160 160 160 Average Speed 165 | 136 160 160 175 161 Slowest Speed 320 | 160 160 160 320 240 Overloaded Moves . | . . . . . Propulsion Burnouts . | . . . . . Robots Hopped . | . . . . . Cave-ins Triggered . | . . . . . Exploration Rate (%) 21 | 4 24 30 28 23 Regions Visited 4 Branch Regions 1 Pre-discovered Areas . | . . . . . Known Exits Taken 1 | . . . 1 . Unknown Exits Taken 3 | 1 1 1 . . Scrap Searched 1 | . . 1 . . Spaces Dug . | . . . . . Terrain Destroyed 92 | . . . 15 77 Melee . | . . . . . Projectile . | . . . . . AOE 92 | . . . 15 77 Terrain Rammed . | . . . . . Walls Destroyed . | . . . . . Machines Disabled . | . . . . . Actions | -11 -10 -10 -9 -8 --------- Run | Jun Mat Min Mat Mat Total 1617 | 92 319 125 691 390 Wait 39 | . 18 . . 21 Move 1365 | 78 259 124 608 296 Hop . | . . . . . Pick Up 33 | 8 7 . 14 4 Fast Attach 5 | . 1 . 3 1 Attach 18 | 6 1 . 5 6 Detach . | . . . . . Swap 10 | . 1 . 7 2 Drop 12 | . 1 . 11 . Fire 127 | . 31 1 39 56 Melee . | . . . . . Ram . | . . . . . Kick . | . . . . . Crush 4 | . . . 4 . Escape Stasis . | . . . . . Rewire 4 | . . . . 4 Trap . | . . . . . Miscellaneous . | . . . . . Route ------- -11/Junkyard -10/Materials -10/Mines -9/Materials (discovered 2 exits: *Mat x2) -8/Materials History --------- Turn | Location | Event 7 | -11/Junkyard | Discovered new exit (range 14) 122 | -11/Junkyard | Entered Materials 313 | -10/Materials | Build established: Mutant 616 | -10/Materials | Discovered new exit (range 12) 659 | -10/Materials | Entered Mines 747 | -10/Mines | Learned location of 1 exit from Materials 834 | -10/Mines | Discovered new exit (range 11) 861 | -10/Mines | Entered Materials 861 | -9/Materials | Evolved 2 slots: Propulsion x1, Weapon x1 862 | -9/Materials | Identified exit to Materials 1163 | -9/Materials | Build established: Gunner 2063 | -9/Materials | Discovered exit to Materials (range 9) 2092 | -9/Materials | Entered another Materials area 2092 | -8/Materials | Evolved 2 slots: Propulsion x1, Utility x1 2445 | -8/Materials | Lost 3 parts (1p1n1w) 2771 | -8/Materials | Self-destructed Last Messages --------------- 02738_ Lgt. Nuclear Core destroyed. 02739_ T-07 Excavator is excavating. 02740_ K-01 Serf collects debris. 02743_ System corrupted: Matter fused (-7). 02743_ Acquired 58 matter. 02744_ U-05 Engineer lays Concrete. 02746_ M-13 Machinist suffers critical hit (Burn). 02753_ Critical hit (Burn: +37). 02755_ U-05 Engineer lays Concrete. 02757_ T-07 Excavator is excavating. 02757_ U-05 Engineer lays Concrete. 02759_ Critical hit (Burn: +37). 02760_ Beam Rifle destroyed. 02761_ T-07 Excavator is excavating. 02762_ Assault Rifle destroyed. 02763_ Lgt. Treads destroyed. 02765_ Critical hit (Burn: +37). 02770_ U-05 Engineer lays Concrete. 02771_ Shield Generator destroyed. 02771_ Imp. Medium Laser destroyed. Map ----- +----------------------------------------------------+ | ?????????????????????????????????????????????????? | | ?????????????????????????????????????????????????? | | ?????????????????????????????????????????????????? | | ?????????????????????????????????????????????????? | | ?????????????????????????????????????????????????? | | ?????????????????????????????????????????????????? | | ?????????????????????????????????????????????????? | | ?????????????????????????????????????????????????? | | ?????????????????????????????????????????????????? | | ?????????????????????????????????????????????????? | | ?????????????????????????????????????????????????? | | ?????????????????????????????????????????????????? | | ?????????????????????????????????????????????????? | | ?????????????????????????????????????????????????? | | ?????????????????????????????????????????????????? | | ???????????????"?????????????????????????????????? | | ??????????????? ???????????????????##????????????? | | ??????????????? ?????????????????? u?????????????? | | ??????????????? ????????????????? ??????????????? | | ??????????????? ???????????????? #???????????????? | | ??????????????? ??????????????? #???????????????? | | ??????????????? ?????????????? k##??????????????? | | ??????????????# #????######## ######?????????? | | ??????????????# #????# gg ????????? | | ?????????????? *#????# a ????????? | | ??????????????#%#????# @Y ] ????????? | | ??????????????#!#????# [ #### #??????????????? | | ????###########%#????# !#???????????????????????? | | ????# #=#????# g #???????????????????????? | | ????# #%###### #???????????????????????? | | ????# #*! #???????????????????????? | | ????# + #???????????????????????? | | ##### == # #???????????????????????? | | #= == ######## #???????????????????????? | | =+ ! = #??????# #???????????????????????? | | !%# ! #??????# #?????????????????? ??? | | ### ###########??????# #?????????????????? #?? | | ??# #????????????????# #?#########???????? #?? | | ??# #????????????????# #?# #???????? #?? | | ??#+#????????????????# #?# ##??????? #?? | | ?????????????????????# #?# ######## #?? | | ?????????????????????# #?# # # ### | | ?????????????????????# #?# # " # ? | | ????????????######???# #?# # T " #?? | | ????????????# ???# ### # " # #?? | | ????????????#| ??# # # # ##? | | ????????????# = ?## ### ## ### # #? | | ????????????# # ### ########### ##? | | ????????????# !!! # #?? | | ????????????# !!! + %%! #?? | +----------------------------------------------------+ Best States ------------- Heat Dissipation 31 Energy Generation 14 Energy Capacity 250 Matter Stores 400 Matter Capacity 400 Sight Range 16 Terrain Scan Density 10 Resistance: KI 20 Resistance: TH 20 Resistance: EX 20 Resistance: EM 20 Resistance: I 20 Resistance: S 20 Resistance: P 20 Evasion (%) 50 Recoil Reduction 4 Offensive Hacking 10 Item Schematics ----------------- None Robot Schematics ------------------ None Fabricated ------------ Nothing Alien Tech Used ----------------- None Achievements -------------- None Challenges ------------ None Game ------ Seed TacticalDirtyVibroblade Manual? 0 Play Time 00:30:27 Cumulative 2.3 hours Start 2023.09.04 @ 17:12:52 End 2023.09.05 @ 23:01:23 Sessions 3 Manual Loads 0 Difficulty Adventurer Special Mode None Game No. 3 Rogue 0 Adventurer 3 Explorer 0 Win Type - Total 0 Types 0/0/0/0/0/0/0/0/0 Lore% 1 Gallery% 10 Achievement% 9 Wizard Run 0 Options --------- ASCII 0 Keyboard 0 Movement Arrows Keybinds 0 Fullscreen 1 Font 18/SmallcapsGlow Map View 76x50 Tactical HUD 1 Map Filters NONE Filters NONE Steam 1 RUN: d069aeb0-5f0a-42c9-b864-1f6b19c8b6b1